[Event "January 2 Late 2024"]
[Site "https://www.chess.com"]
[Date "2024.01.02"]
[Round "5"]
[White "Eggleston, Thomas A"]
[Black "Sanchez Alvares, Kelvin Antonio"]
[Result "1-0"]
[Board "173"]
[TimeControl "180+1"]
[WhiteFideId "412139"]
[BlackFideId "3906680"]
[WhiteElo "2277"]
[BlackElo "2423"]
[WhiteTeam "ENG"]
[BlackTeam "VEN"]
[WhiteClock "0:00:24"]
[BlackClock "0:00:00"]

1. e4 {[%clk 0:02:55]}  c5 {[%clk 0:02:58]} 2. Nf3 {[%clk 0:02:54]}  e6 {[%clk 0:02:58]} 3. g3 {[%clk 0:02:51]}  Nc6 {[%clk 0:02:51]} 4. Bg2 {[%clk 0:02:49]}  Nf6 {[%clk 0:02:42]} 5. d3 {[%clk 0:02:50]}  b6 {[%clk 0:02:32]} 6. O-O {[%clk 0:02:46]}  Bb7 {[%clk 0:02:31]} 7. Re1 {[%clk 0:02:45]}  Be7 {[%clk 0:02:24]} 8. c3 {[%clk 0:02:44]}  d5 {[%clk 0:02:22]} 9. e5 {[%clk 0:02:43]}  Nd7 {[%clk 0:02:21]} 10. h4 {[%clk 0:02:41]}  Qc7 {[%clk 0:02:11]} 11. Qe2 {[%clk 0:02:40]}  O-O {[%clk 0:01:52]} 12. c4 {[%clk 0:02:40]}  dxc4 {[%clk 0:01:32]} 13. dxc4 {[%clk 0:02:39]}  Nd4 {[%clk 0:01:29]} 14. Nxd4 {[%clk 0:02:39]}  cxd4 {[%clk 0:01:26]} 15. Bxb7 {[%clk 0:02:37]}  Qxb7 {[%clk 0:01:25]} 16. Bg5 {[%clk 0:02:20]}  Bxg5 {[%clk 0:01:15]} 17. hxg5 {[%clk 0:02:19]}  Rfd8 {[%clk 0:01:09]} 18. Nd2 {[%clk 0:02:15]}  Nc5 {[%clk 0:01:05]} 19. b4 {[%clk 0:02:11]}  Na4 {[%clk 0:01:01]} 20. Ne4 {[%clk 0:02:06]}  Nc3 {[%clk 0:00:51]} 21. Nxc3 {[%clk 0:02:06]}  dxc3 {[%clk 0:00:52]} 22. Rac1 {[%clk 0:01:47]}  Rd2 {[%clk 0:00:41]} 23. Qe3 {[%clk 0:01:47]}  Rad8 {[%clk 0:00:31]} 24. Rxc3 {[%clk 0:01:46]}  Rxa2 {[%clk 0:00:22]} 25. Rd3 {[%clk 0:01:35]}  Qc7 {[%clk 0:00:16]} 26. Red1 {[%clk 0:01:33]}  Rxd3 {[%clk 0:00:13]} 27. Qxd3 {[%clk 0:01:33]}  h6 {[%clk 0:00:07]} 28. gxh6 {[%clk 0:01:13]}  gxh6 {[%clk 0:00:04]} 29. Qd8+ {[%clk 0:01:10]}  Qxd8 {[%clk 0:00:03]} 30. Rxd8+ {[%clk 0:01:10]}  Kg7 {[%clk 0:00:04]} 31. Rc8 {[%clk 0:01:01]}  Ra4 {[%clk 0:00:04]} 32. b5 {[%clk 0:00:52]}  Kg6 {[%clk 0:00:03]} 33. Rc7 {[%clk 0:00:49]}  Kf5 {[%clk 0:00:03]} 34. Rxf7+ {[%clk 0:00:43]}  Kxe5 {[%clk 0:00:03]} 35. Rf4 {[%clk 0:00:43]}  Ra1+ {[%clk 0:00:02]} 36. Kg2 {[%clk 0:00:43]}  Rd1 {[%clk 0:00:02]} 37. Rh4 {[%clk 0:00:39]}  Rd4 {[%clk 0:00:02]} 38. Rxh6 {[%clk 0:00:39]}  Rxc4 {[%clk 0:00:02]} 39. Rh7 {[%clk 0:00:34]}  Rc5 {[%clk 0:00:02]} 40. Rh5+ {[%clk 0:00:25]}  Kd6 {[%clk 0:00:03]} 41. Rxc5 {[%clk 0:00:25]}  bxc5 {[%clk 0:00:01]} 42. Kf3 {[%clk 0:00:25]}  c4 {[%clk 0:00:02]} 43. Ke3 {[%clk 0:00:25]}  Kc5 {[%clk 0:00:00]} 44. g4 {[%clk 0:00:24]} 1-0

[Event "January 2 Late 2024"]
[Site "https://www.chess.com"]
[Date "2024.01.02"]
[Round "5"]
[White "Sarkar, Justin"]
[Black "Hoeffer, David"]
[Result "0-1"]
[Board "175"]
[TimeControl "180+1"]
[WhiteFideId "2010011"]
[BlackFideId "24606766"]
[WhiteElo "2266"]
[BlackElo "2418"]
[WhiteTeam "USA"]
[BlackTeam "GER"]
[WhiteClock "0:00:00"]
[BlackClock "0:00:10"]

1. d4 {[%clk 0:02:57]}  d5 {[%clk 0:02:53]} 2. c4 {[%clk 0:02:56]}  c6 {[%clk 0:02:53]} 3. Nf3 {[%clk 0:02:51]}  Nf6 {[%clk 0:02:51]} 4. e3 {[%clk 0:02:50]}  e6 {[%clk 0:02:51]} 5. Nc3 {[%clk 0:02:46]}  Nbd7 {[%clk 0:02:51]} 6. a4 {[%clk 0:02:45]}  Bb4 {[%clk 0:02:46]} 7. Bd2 {[%clk 0:02:36]}  O-O {[%clk 0:02:45]} 8. Bd3 {[%clk 0:02:30]}  Re8 {[%clk 0:02:34]} 9. O-O {[%clk 0:02:28]}  Qe7 {[%clk 0:02:30]} 10. a5 {[%clk 0:02:23]}  a6 {[%clk 0:02:29]} 11. Qb3 {[%clk 0:02:13]}  Bd6 {[%clk 0:02:15]} 12. e4 {[%clk 0:02:05]}  dxc4 {[%clk 0:02:14]} 13. Bxc4 {[%clk 0:02:04]}  e5 {[%clk 0:02:15]} 14. Rfe1 {[%clk 0:00:31]}  c5 {[%clk 0:01:39]} 15. d5 {[%clk 0:00:24]}  Nf8 {[%clk 0:01:26]} 16. Na4 {[%clk 0:00:23]}  Bg4 {[%clk 0:01:20]} 17. Nb6 {[%clk 0:00:23]}  Rab8 {[%clk 0:01:16]} 18. h3 {[%clk 0:00:23]}  Bh5 {[%clk 0:01:14]} 19. Nh4 {[%clk 0:00:19]}  Bg6 {[%clk 0:01:03]} 20. Nxg6 {[%clk 0:00:19]}  hxg6 {[%clk 0:01:04]} 21. g3 {[%clk 0:00:18]}  N8d7 {[%clk 0:00:45]} 22. Kg2 {[%clk 0:00:18]}  Nxb6 {[%clk 0:00:44]} 23. axb6 {[%clk 0:00:18]}  Nd7 {[%clk 0:00:43]} 24. Ba5 {[%clk 0:00:17]}  f5 {[%clk 0:00:41]} 25. Qd3 {[%clk 0:00:09]}  Rf8 {[%clk 0:00:40]} 26. b3 {[%clk 0:00:09]}  Qf6 {[%clk 0:00:31]} 27. Rad1 {[%clk 0:00:08]}  Be7 {[%clk 0:00:30]} 28. Qe2 {[%clk 0:00:08]}  Rbe8 {[%clk 0:00:28]} 29. d6+ {[%clk 0:00:08]}  Kh7 {[%clk 0:00:26]} 30. dxe7 {[%clk 0:00:08]}  Rxe7 {[%clk 0:00:27]} 31. Rd5 {[%clk 0:00:08]}  Nxb6 {[%clk 0:00:25]} 32. Rxc5 {[%clk 0:00:08]}  Nxc4 {[%clk 0:00:23]} 33. Rxc4 {[%clk 0:00:08]}  f4 {[%clk 0:00:22]} 34. Qf3 {[%clk 0:00:06]}  Rd7 {[%clk 0:00:21]} 35. Bb4 {[%clk 0:00:05]}  Rfd8 {[%clk 0:00:21]} 36. g4 {[%clk 0:00:05]}  Rd3 {[%clk 0:00:21]} 37. g5 {[%clk 0:00:02]}  Qxg5+ {[%clk 0:00:16]} 38. Qg4 {[%clk 0:00:03]}  Qh6 {[%clk 0:00:13]} 39. f3 {[%clk 0:00:03]}  Rxb3 {[%clk 0:00:09]} 40. Re2 {[%clk 0:00:02]}  Rb1 {[%clk 0:00:10]} 41. Bc3 {[%clk 0:00:00]}  Rdd1 {[%clk 0:00:10]} 0-1

[Event "January 2 Late 2024"]
[Site "https://www.chess.com"]
[Date "2024.01.02"]
[Round "5"]
[White "Caglar, Sila"]
[Black "Fernandez Madrid, Carlos"]
[Result "1-0"]
[Board "176"]
[TimeControl "180+1"]
[WhiteFideId "6364063"]
[BlackFideId "2206030"]
[WhiteElo "2413"]
[BlackElo "2265"]
[WhiteTeam "TUR"]
[BlackTeam "ESP"]
[WhiteClock "0:01:03"]
[BlackClock "0:01:34"]

1. e4 {[%clk 0:03:00]}  g6 {[%clk 0:02:59]} 2. d4 {[%clk 0:02:56]}  Bg7 {[%clk 0:02:59]} 3. Nc3 {[%clk 0:02:57]}  d6 {[%clk 0:02:58]} 4. Nf3 {[%clk 0:02:55]}  a6 {[%clk 0:02:58]} 5. a4 {[%clk 0:02:54]}  b6 {[%clk 0:02:58]} 6. Bc4 {[%clk 0:02:54]}  Bb7 {[%clk 0:02:58]} 7. O-O {[%clk 0:02:54]}  e6 {[%clk 0:02:58]} 8. Re1 {[%clk 0:02:54]}  Ne7 {[%clk 0:02:59]} 9. b3 {[%clk 0:02:41]}  h6 {[%clk 0:02:57]} 10. Bb2 {[%clk 0:02:40]}  O-O {[%clk 0:02:56]} 11. Bd3 {[%clk 0:02:40]}  Nd7 {[%clk 0:02:54]} 12. Ne2 {[%clk 0:02:38]}  c5 {[%clk 0:02:54]} 13. c4 {[%clk 0:02:37]}  cxd4 {[%clk 0:02:48]} 14. Nexd4 {[%clk 0:02:36]}  Nc5 {[%clk 0:02:49]} 15. Bc2 {[%clk 0:02:33]}  d5 {[%clk 0:02:47]} 16. exd5 {[%clk 0:02:31]}  exd5 {[%clk 0:02:47]} 17. cxd5 {[%clk 0:02:19]}  Nxd5 {[%clk 0:02:46]} 18. Ba3 {[%clk 0:02:08]}  a5 {[%clk 0:02:44]} 19. Rc1 {[%clk 0:02:02]}  Nb4 {[%clk 0:02:42]} 20. Bxb4 {[%clk 0:01:54]}  axb4 {[%clk 0:02:42]} 21. Nb5 {[%clk 0:01:54]}  Qxd1 {[%clk 0:02:40]} 22. Rcxd1 {[%clk 0:01:55]}  Bxf3 {[%clk 0:02:39]} 23. gxf3 {[%clk 0:01:54]}  Rad8 {[%clk 0:02:37]} 24. f4 {[%clk 0:01:52]}  Rxd1 {[%clk 0:02:31]} 25. Rxd1 {[%clk 0:01:52]}  Rc8 {[%clk 0:02:30]} 26. Nd6 {[%clk 0:01:33]}  Rd8 {[%clk 0:02:29]} 27. Nc4 {[%clk 0:01:33]}  Rc8 {[%clk 0:02:28]} 28. Nxb6 {[%clk 0:01:32]}  Rc6 {[%clk 0:02:27]} 29. Nd5 {[%clk 0:01:26]}  Kf8 {[%clk 0:02:12]} 30. Nxb4 {[%clk 0:01:25]}  Rc7 {[%clk 0:02:10]} 31. Rd8+ {[%clk 0:01:21]}  Ke7 {[%clk 0:02:10]} 32. Rg8 {[%clk 0:01:21]}  Rb7 {[%clk 0:01:56]} 33. Nc6+ {[%clk 0:01:16]}  Kd6 {[%clk 0:01:49]} 34. Na5 {[%clk 0:01:09]}  Ra7 {[%clk 0:01:49]} 35. Nc4+ {[%clk 0:01:09]}  Ke6 {[%clk 0:01:46]} 36. Rxg7 {[%clk 0:01:10]}  Ra8 {[%clk 0:01:44]} 37. Ne5 {[%clk 0:01:07]}  Ra7 {[%clk 0:01:38]} 38. Bxg6 {[%clk 0:01:04]}  fxg6 {[%clk 0:01:34]} 39. Rxa7 {[%clk 0:01:03]} 1-0

[Event "January 2 Late 2024"]
[Site "https://www.chess.com"]
[Date "2024.01.02"]
[Round "5"]
[White "Doublekk14"]
[Black "Carrasco Miranda, Andres"]
[Result "0-1"]
[Board "181"]
[TimeControl "180+1"]
[BlackFideId "3405990"]
[WhiteElo "2242"]
[BlackElo "2397"]
[BlackTeam "CHI"]
[WhiteClock "0:00:00"]
[BlackClock "0:00:17"]

1. c4 {[%clk 0:03:00]}  Nf6 {[%clk 0:02:56]} 2. Nc3 {[%clk 0:02:59]}  g6 {[%clk 0:02:56]} 3. e3 {[%clk 0:02:47]}  Bg7 {[%clk 0:02:54]} 4. Nf3 {[%clk 0:02:44]}  O-O {[%clk 0:02:53]} 5. d4 {[%clk 0:02:41]}  c5 {[%clk 0:02:53]} 6. Be2 {[%clk 0:02:39]}  cxd4 {[%clk 0:02:53]} 7. exd4 {[%clk 0:02:38]}  d5 {[%clk 0:02:53]} 8. h3 {[%clk 0:02:36]}  dxc4 {[%clk 0:02:52]} 9. Bxc4 {[%clk 0:02:32]}  Nc6 {[%clk 0:02:53]} 10. O-O {[%clk 0:02:31]}  Na5 {[%clk 0:02:52]} 11. Be2 {[%clk 0:02:29]}  Be6 {[%clk 0:02:51]} 12. Be3 {[%clk 0:02:29]}  Nc4 {[%clk 0:02:51]} 13. b3 {[%clk 0:02:23]}  Nxe3 {[%clk 0:02:50]} 14. fxe3 {[%clk 0:02:24]}  Rc8 {[%clk 0:02:48]} 15. Qd2 {[%clk 0:02:17]}  Qa5 {[%clk 0:02:47]} 16. Rac1 {[%clk 0:02:14]}  Rfd8 {[%clk 0:02:44]} 17. Ng5 {[%clk 0:02:07]}  Bf5 {[%clk 0:02:42]} 18. Rxf5 {[%clk 0:02:03]}  Qxf5 {[%clk 0:02:39]} 19. e4 {[%clk 0:01:59]}  Nxe4 {[%clk 0:01:50]} 20. Ncxe4 {[%clk 0:01:57]}  Rxc1+ {[%clk 0:01:50]} 21. Qxc1 {[%clk 0:01:55]}  Bxd4+ {[%clk 0:01:50]} 22. Kh1 {[%clk 0:01:49]}  h6 {[%clk 0:01:48]} 23. Bg4 {[%clk 0:00:58]}  Qd5 {[%clk 0:01:38]} 24. Nf3 {[%clk 0:00:51]}  Qxe4 {[%clk 0:01:35]} 25. Qxh6 {[%clk 0:00:51]}  Qb1+ {[%clk 0:01:21]} 26. Kh2 {[%clk 0:00:47]}  Bg7 {[%clk 0:01:14]} 27. Qh4 {[%clk 0:00:44]}  Bf6 {[%clk 0:01:10]} 28. Qg3 {[%clk 0:00:37]}  Rd1 {[%clk 0:01:09]} 29. Qc7 {[%clk 0:00:34]}  Rh1+ {[%clk 0:01:08]} 30. Kg3 {[%clk 0:00:33]}  Qe4 {[%clk 0:01:01]} 31. Bc8 {[%clk 0:00:24]}  b6 {[%clk 0:00:20]} 32. Bb7 {[%clk 0:00:16]}  Qe3 {[%clk 0:00:17]} 33. Qc8+ {[%clk 0:00:12]}  Kg7 {[%clk 0:00:17]} 34. Qg4 {[%clk 0:00:00]}  Be5+ {[%clk 0:00:17]} 0-1

[Event "January 2 Late 2024"]
[Site "https://www.chess.com"]
[Date "2024.01.02"]
[Round "5"]
[White "Jarocka, Liwia"]
[Black "Guevara Sanchez, Erick Marvin"]
[Result "1-0"]
[Board "182"]
[TimeControl "180+1"]
[WhiteFideId "21807558"]
[BlackFideId "6700136"]
[WhiteElo "2393"]
[BlackElo "2229"]
[WhiteTeam "POL"]
[BlackTeam "ESA"]
[WhiteClock "0:02:03"]
[BlackClock "0:00:21"]

1. e4 {[%clk 0:03:00]}  c5 {[%clk 0:02:59]} 2. d4 {[%clk 0:03:00]}  cxd4 {[%clk 0:02:59]} 3. c3 {[%clk 0:03:00]}  dxc3 {[%clk 0:02:58]} 4. Nxc3 {[%clk 0:03:01]}  Nc6 {[%clk 0:02:59]} 5. Nf3 {[%clk 0:03:02]}  e6 {[%clk 0:02:59]} 6. Bc4 {[%clk 0:02:59]}  a6 {[%clk 0:03:00]} 7. O-O {[%clk 0:02:59]}  b5 {[%clk 0:02:59]} 8. Bb3 {[%clk 0:02:59]}  Na5 {[%clk 0:02:59]} 9. Bc2 {[%clk 0:02:58]}  Bb7 {[%clk 0:02:58]} 10. Re1 {[%clk 0:02:57]}  Bc5 {[%clk 0:02:55]} 11. a3 {[%clk 0:02:55]}  Nc6 {[%clk 0:02:49]} 12. e5 {[%clk 0:02:53]}  Nge7 {[%clk 0:02:43]} 13. Ne4 {[%clk 0:02:53]}  Qb6 {[%clk 0:02:39]} 14. b4 {[%clk 0:02:51]}  Bd4 {[%clk 0:02:33]} 15. Nxd4 {[%clk 0:02:49]}  Nxd4 {[%clk 0:02:30]} 16. Nd6+ {[%clk 0:02:49]}  Kf8 {[%clk 0:02:28]} 17. Be3 {[%clk 0:02:48]}  Nec6 {[%clk 0:02:19]} 18. Nxb7 {[%clk 0:02:47]}  Qxb7 {[%clk 0:02:15]} 19. Bxd4 {[%clk 0:02:46]}  Rc8 {[%clk 0:02:10]} 20. Bc5+ {[%clk 0:02:46]}  Ke8 {[%clk 0:02:09]} 21. Be4 {[%clk 0:02:46]}  Qc7 {[%clk 0:02:03]} 22. Rc1 {[%clk 0:02:46]}  Nxe5 {[%clk 0:01:49]} 23. Bd6 {[%clk 0:02:29]}  Qxc1 {[%clk 0:01:45]} 24. Qxc1 {[%clk 0:02:30]}  Rxc1 {[%clk 0:01:45]} 25. Rxc1 {[%clk 0:02:30]}  Nc4 {[%clk 0:01:46]} 26. Bc5 {[%clk 0:02:28]}  d5 {[%clk 0:01:38]} 27. Bd3 {[%clk 0:02:27]}  Kd7 {[%clk 0:01:35]} 28. Bxc4 {[%clk 0:02:27]}  bxc4 {[%clk 0:01:35]} 29. f3 {[%clk 0:02:26]}  Kc6 {[%clk 0:01:35]} 30. Kf2 {[%clk 0:02:27]}  Rb8 {[%clk 0:01:33]} 31. Ke3 {[%clk 0:02:27]}  e5 {[%clk 0:01:31]} 32. f4 {[%clk 0:02:26]}  f6 {[%clk 0:01:30]} 33. fxe5 {[%clk 0:02:24]}  fxe5 {[%clk 0:01:30]} 34. Rf1 {[%clk 0:02:25]}  Rb7 {[%clk 0:01:25]} 35. Rf8 {[%clk 0:02:23]}  Kb5 {[%clk 0:01:23]} 36. Re8 {[%clk 0:02:23]}  d4+ {[%clk 0:01:19]} 37. Ke4 {[%clk 0:02:20]}  c3 {[%clk 0:01:17]} 38. Kd3 {[%clk 0:02:20]}  Ka4 {[%clk 0:01:12]} 39. Rxe5 {[%clk 0:02:18]}  Kb3 {[%clk 0:01:10]} 40. Re2 {[%clk 0:02:17]}  Rf7 {[%clk 0:00:58]} 41. Bxd4 {[%clk 0:02:16]}  Rd7 {[%clk 0:00:56]} 42. Re1 {[%clk 0:02:11]}  c2 {[%clk 0:00:52]} 43. Rc1 {[%clk 0:02:10]}  Kxa3 {[%clk 0:00:48]} 44. Kc3 {[%clk 0:02:05]}  Rc7+ {[%clk 0:00:45]} 45. Bc5 {[%clk 0:02:05]}  a5 {[%clk 0:00:42]} 46. bxa5+ {[%clk 0:02:03]}  Ka4 {[%clk 0:00:38]} 47. Kc4 {[%clk 0:02:03]}  Kxa5 {[%clk 0:00:21]} 48. Ra1# {[%clk 0:02:03]} 1-0

[Event "January 2 Late 2024"]
[Site "https://www.chess.com"]
[Date "2024.01.02"]
[Round "5"]
[White "Jose Iraeta, Alejandro"]
[Black "Travkina, Anastasia"]
[Result "0-1"]
[Board "183"]
[TimeControl "180+1"]
[WhiteFideId "2226537"]
[BlackFideId "24129151"]
[WhiteElo "2216"]
[BlackElo "2387"]
[WhiteTeam "ESP"]
[BlackTeam "RUS"]
[WhiteClock "0:00:15"]
[BlackClock "0:02:28"]

1. e4 {[%clk 0:02:46]}  c5 {[%clk 0:02:59]} 2. Nf3 {[%clk 0:02:46]}  d6 {[%clk 0:03:00]} 3. d4 {[%clk 0:02:46]}  cxd4 {[%clk 0:03:00]} 4. Nxd4 {[%clk 0:02:47]}  Nf6 {[%clk 0:03:00]} 5. Nc3 {[%clk 0:02:37]}  g6 {[%clk 0:03:00]} 6. Bc4 {[%clk 0:02:36]}  Bg7 {[%clk 0:02:57]} 7. f3 {[%clk 0:02:36]}  O-O {[%clk 0:02:54]} 8. Be3 {[%clk 0:02:36]}  Nc6 {[%clk 0:02:54]} 9. Qd2 {[%clk 0:02:36]}  Bd7 {[%clk 0:02:52]} 10. O-O-O {[%clk 0:02:36]}  Rb8 {[%clk 0:02:53]} 11. h4 {[%clk 0:02:17]}  b5 {[%clk 0:02:53]} 12. Ndxb5 {[%clk 0:01:56]}  Ne5 {[%clk 0:02:52]} 13. Be2 {[%clk 0:01:53]}  Qa5 {[%clk 0:02:50]} 14. Nd4 {[%clk 0:01:44]}  Rfc8 {[%clk 0:02:50]} 15. Nb3 {[%clk 0:01:43]}  Rxb3 {[%clk 0:02:50]} 16. axb3 {[%clk 0:01:31]}  Qa1+ {[%clk 0:02:50]} 17. Nb1 {[%clk 0:01:31]}  Nxe4 {[%clk 0:02:43]} 18. Qd5 {[%clk 0:00:18]}  Nc4 {[%clk 0:02:39]} 19. Bd4 {[%clk 0:00:15]}  Bh6+ {[%clk 0:02:28]} 0-1

[Event "January 2 Late 2024"]
[Site "https://www.chess.com"]
[Date "2024.01.02"]
[Round "5"]
[White "Porat, Tori"]
[Black "RemcoSpr"]
[Result "0-1"]
[Board "186"]
[TimeControl "180+1"]
[WhiteFideId "30982626"]
[WhiteElo "2170"]
[BlackElo "2379"]
[WhiteTeam "USA"]
[WhiteClock "0:00:14"]
[BlackClock "0:00:19"]

1. d4 {[%clk 0:02:56]}  Nf6 {[%clk 0:02:59]} 2. c4 {[%clk 0:02:51]}  c5 {[%clk 0:02:58]} 3. d5 {[%clk 0:02:51]}  e6 {[%clk 0:02:59]} 4. Nc3 {[%clk 0:02:50]}  exd5 {[%clk 0:02:59]} 5. cxd5 {[%clk 0:02:50]}  d6 {[%clk 0:03:00]} 6. Nf3 {[%clk 0:02:49]}  g6 {[%clk 0:03:00]} 7. Bg5 {[%clk 0:02:49]}  Bg7 {[%clk 0:02:59]} 8. e4 {[%clk 0:02:49]}  a6 {[%clk 0:02:51]} 9. Bd3 {[%clk 0:02:47]}  b5 {[%clk 0:02:50]} 10. O-O {[%clk 0:02:45]}  Bg4 {[%clk 0:02:49]} 11. h3 {[%clk 0:02:41]}  Bxf3 {[%clk 0:02:49]} 12. Qxf3 {[%clk 0:02:41]}  Nbd7 {[%clk 0:02:50]} 13. Qg3 {[%clk 0:02:37]}  Qe7 {[%clk 0:02:46]} 14. f4 {[%clk 0:02:34]}  h6 {[%clk 0:02:25]} 15. Bxf6 {[%clk 0:02:32]}  Bxf6 {[%clk 0:02:23]} 16. Rae1 {[%clk 0:02:25]}  Bh4 {[%clk 0:02:22]} 17. Qf3 {[%clk 0:02:19]}  Bxe1 {[%clk 0:02:22]} 18. Rxe1 {[%clk 0:02:19]}  O-O {[%clk 0:02:19]} 19. f5 {[%clk 0:02:18]}  Ne5 {[%clk 0:02:17]} 20. Qe2 {[%clk 0:02:16]}  Qg5 {[%clk 0:02:12]} 21. Bc2 {[%clk 0:02:09]}  Kh8 {[%clk 0:02:11]} 22. Nd1 {[%clk 0:02:07]}  Rg8 {[%clk 0:02:02]} 23. Rf1 {[%clk 0:01:54]}  Rae8 {[%clk 0:01:54]} 24. f6 {[%clk 0:01:53]}  Nd7 {[%clk 0:01:50]} 25. Nf2 {[%clk 0:01:50]}  Nxf6 {[%clk 0:01:41]} 26. a4 {[%clk 0:01:48]}  Nxd5 {[%clk 0:01:34]} 27. axb5 {[%clk 0:01:46]}  Nf4 {[%clk 0:01:27]} 28. Qf3 {[%clk 0:01:46]}  axb5 {[%clk 0:01:16]} 29. Ng4 {[%clk 0:01:45]}  h5 {[%clk 0:01:12]} 30. Nf2 {[%clk 0:01:31]}  Ne6 {[%clk 0:01:01]} 31. Bd1 {[%clk 0:01:15]}  f5 {[%clk 0:00:54]} 32. Qc3+ {[%clk 0:01:10]}  Nd4 {[%clk 0:00:54]} 33. Kh1 {[%clk 0:01:05]}  fxe4 {[%clk 0:00:50]} 34. Bb3 {[%clk 0:00:54]}  Rgf8 {[%clk 0:00:46]} 35. Kg1 {[%clk 0:00:35]}  e3 {[%clk 0:00:36]} 36. Nh1 {[%clk 0:00:28]}  Rxf1+ {[%clk 0:00:34]} 37. Kxf1 {[%clk 0:00:28]}  e2+ {[%clk 0:00:33]} 38. Ke1 {[%clk 0:00:26]}  Re3 {[%clk 0:00:26]} 39. Qa5 {[%clk 0:00:22]}  Nxb3 {[%clk 0:00:20]} 40. Qa8+ {[%clk 0:00:20]}  Kg7 {[%clk 0:00:20]} 41. Qa7+ {[%clk 0:00:19]}  Re7 {[%clk 0:00:20]} 42. Qa2 {[%clk 0:00:14]}  Qc1+ {[%clk 0:00:19]} 0-1

[Event "January 2 Late 2024"]
[Site "https://www.chess.com"]
[Date "2024.01.02"]
[Round "5"]
[White "KSho99"]
[Black "Rios Escobar, Adan"]
[Result "0-1"]
[Board "187"]
[TimeControl "180+1"]
[BlackFideId "3403645"]
[WhiteElo "2164"]
[BlackElo "2373"]
[BlackTeam "CHI"]
[WhiteClock "0:00:02"]
[BlackClock "0:01:37"]

1. Nf3 {[%clk 0:03:00]}  Nf6 {[%clk 0:02:48]} 2. g3 {[%clk 0:03:00]}  g6 {[%clk 0:02:47]} 3. Bg2 {[%clk 0:03:00]}  Bg7 {[%clk 0:02:48]} 4. O-O {[%clk 0:03:00]}  O-O {[%clk 0:02:47]} 5. d4 {[%clk 0:02:56]}  c5 {[%clk 0:02:46]} 6. d5 {[%clk 0:02:45]}  d6 {[%clk 0:02:37]} 7. c4 {[%clk 0:02:29]}  b5 {[%clk 0:02:37]} 8. cxb5 {[%clk 0:02:26]}  a6 {[%clk 0:02:38]} 9. Nc3 {[%clk 0:02:13]}  a5 {[%clk 0:02:31]} 10. a4 {[%clk 0:01:50]}  Nbd7 {[%clk 0:02:32]} 11. Nd2 {[%clk 0:01:33]}  Nb6 {[%clk 0:02:32]} 12. e4 {[%clk 0:01:29]}  Bg4 {[%clk 0:02:31]} 13. Qc2 {[%clk 0:01:25]}  h5 {[%clk 0:02:26]} 14. h3 {[%clk 0:01:14]}  Bd7 {[%clk 0:02:25]} 15. b3 {[%clk 0:01:00]}  Qc8 {[%clk 0:02:19]} 16. Kh2 {[%clk 0:00:58]}  Nh7 {[%clk 0:02:20]} 17. Bb2 {[%clk 0:00:45]}  Ng5 {[%clk 0:02:19]} 18. h4 {[%clk 0:00:45]}  Nh7 {[%clk 0:02:20]} 19. Nc4 {[%clk 0:00:38]}  Qc7 {[%clk 0:02:15]} 20. Nb1 {[%clk 0:00:22]}  Nf6 {[%clk 0:02:15]} 21. Nxb6 {[%clk 0:00:19]}  Qxb6 {[%clk 0:02:14]} 22. Nd2 {[%clk 0:00:20]}  Rae8 {[%clk 0:02:11]} 23. Nc4 {[%clk 0:00:19]}  Qc7 {[%clk 0:02:12]} 24. Kg1 {[%clk 0:00:19]}  Bg4 {[%clk 0:02:08]} 25. Bc3 {[%clk 0:00:17]}  Ra8 {[%clk 0:02:07]} 26. Rae1 {[%clk 0:00:16]}  Nd7 {[%clk 0:02:06]} 27. Bxg7 {[%clk 0:00:15]}  Kxg7 {[%clk 0:02:06]} 28. Qc3+ {[%clk 0:00:15]}  Nf6 {[%clk 0:02:03]} 29. f3 {[%clk 0:00:13]}  Bc8 {[%clk 0:02:03]} 30. Re2 {[%clk 0:00:11]}  Kh7 {[%clk 0:02:01]} 31. Re3 {[%clk 0:00:12]}  Nd7 {[%clk 0:02:01]} 32. f4 {[%clk 0:00:11]}  Nf6 {[%clk 0:02:01]} 33. Rd1 {[%clk 0:00:10]}  Ng4 {[%clk 0:02:01]} 34. Re2 {[%clk 0:00:10]}  Bb7 {[%clk 0:02:00]} 35. Rdd2 {[%clk 0:00:10]}  Kg8 {[%clk 0:01:52]} 36. Re1 {[%clk 0:00:10]}  Nf6 {[%clk 0:01:50]} 37. Bf3 {[%clk 0:00:10]}  Bc8 {[%clk 0:01:49]} 38. Qe3 {[%clk 0:00:07]}  Bg4 {[%clk 0:01:49]} 39. Bxg4 {[%clk 0:00:07]}  Nxg4 {[%clk 0:01:50]} 40. Qc3 {[%clk 0:00:07]}  Rfd8 {[%clk 0:01:47]} 41. e5 {[%clk 0:00:06]}  dxe5 {[%clk 0:01:43]} 42. fxe5 {[%clk 0:00:07]}  Re8 {[%clk 0:01:40]} 43. b6 {[%clk 0:00:05]}  Qd8 {[%clk 0:01:39]} 44. Nxa5 {[%clk 0:00:02]}  Qxb6 {[%clk 0:01:38]} 45. Nc6 {[%clk 0:00:02]}  c4+ {[%clk 0:01:38]} 46. Qd4 {[%clk 0:00:01]}  Qxb3 {[%clk 0:01:38]} 47. d6 {[%clk 0:00:01]}  Qxg3+ {[%clk 0:01:37]} 48. Kf1 {[%clk 0:00:02]}  Nh2+ {[%clk 0:01:37]} 49. Ke2 {[%clk 0:00:02]}  Qf3# {[%clk 0:01:37]} 0-1